Workbook

Sheet DHCS Only (hidden)
A1: For DHCS use only.
A2: Click button to lock or unlock all sheets for editing.
A3: This tab should be hidden when not in use.

Sheet 1. Information
B1: STATE OF CALIFORNIA | E1: Department of Health Care Services
B2: HEALTH AND HUMAN SERVICES AGENCY
B4: DHCS 1822 A (Rev. 10/18)
B5: Annual Mental Health Services Act Revenue and Expenditure Report
B6: ="Fiscal Year: "&D10 -> Fiscal Year: 2022-23
B7: Information
B9: 1 | C9: Date: | D9: 2024-03-07
B10: 2 | C10: RER Fiscal Year (20YY-YY): | D10: 2022-23
B11: 3 | C11: County: | D11: San Benito
B12: 4 | C12: County Code: | D12: =IF(ISBLANK(D11),"",VLOOKUP(D11,Info_County_Code,2)) -> 35
B13: 5 | C13: Address: | D13: 1131 Community Parkway
B14: 6 | C14: City: | D14: Hollister, CA
B15: 7 | C15: Zip: | D15: 95023
B16: 8 | C16: County Population: Over 200,000? (Yes or No) | D16: =IF(ISBLANK(D11),"",VLOOKUP(D11,County_Population,5,FALSE)) -> No
B17: 9 | C17: Name of Preparer: | D17: Sandra Urbina
B18: 10 | C18: Title of Preparer: | D18: Accountant III
B19: 11 | C19: Preparer Contact Email: | D19: saurbina@sbcmh.org
B20: 12 | C20: Preparer Contact Telephone | D20: (831)836-4020

Sheet 2. Component Summary
B1: STATE OF CALIFORNIA | I1: Department of Health Care Services
B2: HEALTH AND HUMAN SERVICES AGENCY
B4: DHCS 1822 B (Rev. 10/18)
B5: ='1. Information'!B5 -> Annual Mental Health Services Act Revenue and Expenditure Report
B6: ='1. Information'!B6 -> Fiscal Year: 2022-23
B7: Component Summary
B9: County: | C9: =IF(ISBLANK('1. Information'!D11),"",'1. Information'!D11) -> San Benito | F9: Date: | G9: =IF(ISBLANK('1. Information'!D9),"",'1. Information'!D9) -> 2024-03-07
D12: A | E12: B | F12: C | G12: D | H12: E | I12: F
B13: SECTION 1: Interest | D13: CSS | E13: PEI | F13: INN | G13: WET | H13: CFTN | I13: TOTAL
B14: 1 | C14: Component Interest Earned | D14: =231207.69+20601.18 -> 251808.87 | E14: 57801.92 | F14: 15211.03 | G14: 3647.66 | H14: 29509.64 | I14: =SUM(D14:H14) -> 357979.12
B15: 2 | C15: Joint Powers Authority Interest Earned | I15: =SUM(D15:H15) -> 0
D17: A | E17: B | F17: C
B18: SECTION 2: Prudent Reserve | D18: CSS | E18: PEI | F18: TOTAL
B19: 3 | C19: Local Prudent Reserve Beginning Balance | F19: 790759
B20: 4 | C20: Transfer from Local Prudent Reserve | F20: =-D20-E20 -> 0
B21: 5 | C21: CSS Funds Transferred to Local Prudent Reserve | D21: ='3. CSS'!F24 -> 0 | F21: =SUM(D21:E21) -> 0
B22: 6 | C22: Local Prudent Reserve Adjustments | F22: =SUM('8. Adjustment (MHSA)'!F85:F114) -> 0
B23: 7 | C23: Local Prudent Reserve Ending Balance | F23: =F19+F20+F21+F22 -> 790759
D25: A | E25: B | F25: C | G25: D | H25: E | I25: F
B26: SECTION 3: CSS Transfers to PEI, WET, CFTN, or Prudent Reserve | D26: CSS | E26: PEI | F26: WET | G26: CFTN | H26: PR | I26: TOTAL
B27: 8 | C27: Transfers | D27: =(E27+F27+G27+H27)*-1 -> -784932.05 | E27: ='3. CSS'!F21 -> 0 | F27: ='3. CSS'!F22 -> 0 | G27: ='3. CSS'!F23 -> 784932.05 | H27: ='3. CSS'!F24 -> 0 | I27: =SUM(D27:H27) -> 0 | J27: =IF(SUM(D27:H27)=I27,"","ERROR") -> 
D29: A | E29: B | F29: C | G29: D | H29: E | I29: F
B30: SECTION 4: Program Expenditures and Sources of Funding | D30: CSS | E30: PEI | F30: INN | G30: WET | H30: CFTN | I30: TOTAL
B31: 9 | C31: MHSA Funds | D31: ='3. CSS'!F27 -> 2126307.6 | E31: ='4. PEI'!F22 -> 690210.4 | F31: ='5. INN'!F23 -> 396170.66 | G31: ='6. WET'!F21 -> 102577.7 | H31: ='7. CFTN'!F22 -> 1304136.79 | I31: =SUM(D31:H31) -> 4619403.15
B32: 10 | C32: Medi-Cal FFP | D32: ='3. CSS'!G27 -> 2663513.96 | E32: ='4. PEI'!G22 -> 0 | F32: ='5. INN'!G23 -> 0 | G32: ='6. WET'!G21 -> 0 | H32: ='7. CFTN'!G22 -> 0 | I32: 2663513.96
B33: 11 | C33: 1991 Realignment | D33: ='3. CSS'!H27 -> 560864.52 | E33: ='4. PEI'!H22 -> 0 | F33: ='5. INN'!H23 -> 0 | G33: ='6. WET'!H21 -> 0 | H33: ='7. CFTN'!H22 -> 0 | I33: 560864.52
B34: 12 | C34: Behavioral Health Subaccount | D34: ='3. CSS'!I27 -> 260449.18 | E34: ='4. PEI'!I22 -> 0 | F34: ='5. INN'!I23 -> 0 | G34: ='6. WET'!I21 -> 0 | H34: ='7. CFTN'!I22 -> 0 | I34: 260449.18
B35: 13 | C35: Other | D35: ='3. CSS'!J27 -> 1107819.88 | E35: ='4. PEI'!J22 -> 0 | F35: ='5. INN'!J23 -> 0 | G35: ='6. WET'!J21 -> 0 | H35: ='7. CFTN'!J22 -> 0 | I35: 1107819.88
B36: 14 | C36: TOTAL | D36: =SUM(D31:D35) -> 6718955.14 | E36: =SUM(E31:E35) -> 690210.4 | F36: =SUM(F31:F35) -> 396170.66 | G36: =SUM(G31:G35) -> 102577.7 | H36: =SUM(H31:H35) -> 1304136.79 | I36: 9212050.69
D38: A
B39: SECTION 5: Miscellaneous MHSA Costs and Expenditures | D39: TOTAL
B40: 15 | C40: Total Annual Planning Costs | D40: ='3. CSS'!K15+'4. PEI'!K15+'5. INN'!K15+'6. WET'!K15+'7. CFTN'!K15 -> 18461
B41: 16 | C41: Total Evaluation Costs | D41: ='3. CSS'!K16+'4. PEI'!K16+'5. INN'!K20+'6. WET'!K16+'7. CFTN'!K17+'7. CFTN'!K18 -> 19360
B42: 17 | C42: Total Administration | D42: ='3. CSS'!K17+'4. PEI'!K17+'5. INN'!K16+'5. INN'!K19+'6. WET'!K17+'7. CFTN'!K19+'7. CFTN'!K20 -> 962866.06
B43: 18 | C43: Total WET RP | D43: ='6. WET'!J33 -> 0
B44: 19 | C44: Total PEI SW | D44: ='4. PEI'!K18 -> 18017
B45: 20 | C45: Total MHSA HP | D45: 0
B46: 21 | C46: Total Mental Health Services For Veterans | D46: 21454.61

Sheet 3. CSS
B1: STATE OF CALIFORNIA | L1: Department of Health Care Services
B2: HEALTH AND HUMAN SERVICES AGENCY
B4: DHCS 1822 C (Rev. 10/18)
B5: ='1. Information'!B5 -> Annual Mental Health Services Act Revenue and Expenditure Report
B6: ='1. Information'!B6 -> Fiscal Year: 2022-23
B7: Community Services and Supports (CSS) Summary
B9: County: | D9: =IF(ISBLANK('1. Information'!D11),"",'1. Information'!D11) -> San Benito | F9: Date: | G9: =IF(ISBLANK('1. Information'!D9),"",'1. Information'!D9) -> 2024-03-07
B11: SECTION ONE
F13: A | G13: B | H13: C | I13: D | J13: E | K13: F
F14: Total MHSA (Including Interest) | G14: Medi-Cal FFP | H14: 1991 Realignment | I14: Behavioral Health Subaccount | J14: Other | K14: Grand Total
B15: 1 | C15: CSS Annual Planning Costs | F15: 6424 | G15: 0 | H15: 0 | I15: 0 | J15: 0 | K15: =SUM(F15:J15) -> 6424
B16: 2 | C16: CSS Evaluation Costs | F16: 2816 | G16: 0 | H16: 0 | I16: 0 | J16: 0 | K16: =SUM(F16:J16) -> 2816
B17: 3 | C17: CSS Administration Costs | F17: 165448.93 | G17: 344492.49 | H17: 159742.44 | I17: 0 | J17: 0 | K17: 669683.86
B18: 4 | C18: CSS Funds Transferred to JPA | K18: 0
B19: 5 | C19: CSS Expenditure Incurred by JPA | K19: 0
B20: 6 | C20: CSS Funds Transferred to CalHFA | K20: 0
B21: 7 | C21: CSS Funds Transferred to PEI | K21: 0
B22: 8 | C22: CSS Funds Transferred to WET | K22: 0
B23: 9 | C23: CSS Funds Transferred to CFTN | F23: 784932.05 | K23: 784932.05
B24: 10 | C24: CSS Funds Transferred to PR | K24: 0
B25: 11 | C25: CSS Program Expenditures | F25: =SUM(G34:G133) -> 1951618.67 | G25: =SUM(H34:H133) -> 2319021.47 | H25: =SUM(I34:I133) -> 401122.08 | I25: =SUM(J34:J133) -> 260449.18 | J25: =SUM(K34:K133) -> 1107819.88 | K25: 6040031.28
B26: 12 | C26: Total CSS Expenditures (Excluding Funds Transferred to JPA) | F26: =SUM(F15:F17,F19:F25) -> 2911239.65 | G26: 2663513.96 | H26: 560864.52 | I26: 260449.18 | J26: 1107819.88 | K26: 7503887.19
B27: 13 | C27: Total CSS Expenditures (Excluding Funds Transferred) | F27: =SUM(F15:F17,F19,F25) -> 2126307.6 | G27: 2663513.96 | H27: 560864.52 | I27: 260449.18 | J27: 1107819.88 | K27: 6718955.14
B30: SECTION TWO
C32: A | D32: B | E32: C | F32: D | G32: E | H32: F | I32: G | J32: H | K32: I | L32: J
B33: # | C33: County Code | D33: Program Name | E33: Prior Program Name | F33: Service Category | G33: Total MHSA (Including Interest) | H33: Medi-Cal FFP | I33: 1991 Realignment | J33: Behavioral Health Subaccount | K33: Other | L33: Grand Total
B34: 1 | C34: =IF(L34<>0,VLOOKUP($D$9,Info_County_Code,2,FALSE),"") -> 35 | D34: Integrated FSP | F34: FSP | G34: 121364.71 | H34: 184098.85 | I34: 185781.63 | J34: 0 | K34: 0 | L34: =SUM(G34:K34) -> 491245.19
B35: 2 | C35: 35 | D35: General System Development | F35: Non-FSP | G35: 1220120.03 | H35: 2134922.62 | I35: 215340.45 | J35: 260449.18 | K35: 1107819.88 | L35: =SUM(G35:K35) -> 4938652.16
B36: 3 | C36: 35 | D36: Outreach and Engagement | F36: Non-FSP | G36: 610133.93 | H36: 0 | I36: 0 | J36: 0 | K36: 0 | L36: 610133.93
B37: 4 | L37: 0
B38: 5 | L38: 0
B39: 6 | L39: 0
B40: 7 | L40: 0
B41: 8 | L41: 0
B42: 9 | L42: 0
B43: 10 | L43: 0
B44: 11 | L44: 0
B45: 12 | L45: 0
B46: 13 | L46: 0
B47: 14 | L47: 0
B48: 15 | L48: 0
B49: 16 | L49: 0
B50: 17 | L50: 0
B51: 18 | L51: 0
B52: 19 | L52: 0
B53: 20 | L53: 0
B54: 21 | L54: 0
B55: 22 | L55: 0
B56: 23 | L56: 0
B57: 24 | L57: 0
B58: 25 | L58: 0
B59: 26 | L59: 0
B60: 27 | L60: 0
B61: 28 | L61: 0
B62: 29 | L62: 0
B63: 30 | L63: 0
B64: 31 | L64: 0
B65: 32 | L65: 0
B66: 33 | C66: =IF(L66<>0,VLOOKUP($D$9,Info_County_Code,2,FALSE),"") ->  | L66: 0
B67: 34 | L67: 0
B68: 35 | L68: 0
B69: 36 | L69: 0
B70: 37 | L70: 0
B71: 38 | L71: 0
B72: 39 | L72: 0
B73: 40 | L73: 0
B74: 41 | L74: 0
B75: 42 | L75: 0
B76: 43 | L76: 0
B77: 44 | L77: 0
B78: 45 | L78: =SUM(G78:K78) -> 0
B79: 46 | L79: 0
B80: 47 | L80: 0
B81: 48 | L81: 0
B82: 49 | L82: 0
B83: 50 | L83: 0
B84: 51 | L84: 0
B85: 52 | L85: 0
B86: 53 | L86: 0
B87: 54 | L87: 0
B88: 55 | L88: 0
B89: 56 | L89: 0
B90: 57 | L90: 0
B91: 58 | L91: 0
B92: 59 | L92: 0
B93: 60 | L93: 0
B94: 61 | L94: 0
B95: 62 | L95: 0
B96: 63 | L96: 0
B97: 64 | L97: 0
B98: 65 | C98: =IF(L98<>0,VLOOKUP($D$9,Info_County_Code,2,FALSE),"") ->  | L98: 0
B99: 66 | L99: =SUM(G99:K99) -> 0
B100: 67 | L100: 0
B101: 68 | L101: 0
B102: 69 | L102: 0
B103: 70 | L103: 0
B104: 71 | L104: 0
B105: 72 | L105: 0
B106: 73 | L106: 0
B107: 74 | L107: 0
B108: 75 | L108: 0
B109: 76 | L109: 0
B110: 77 | L110: 0
B111: 78 | L111: =SUM(G111:K111) -> 0
B112: 79 | L112: =SUM(G112:K112) -> 0
B113: 80 | L113: 0
B114: 81 | L114: 0
B115: 82 | L115: 0
B116: 83 | L116: 0
B117: 84 | L117: 0
B118: 85 | L118: 0
B119: 86 | L119: 0
B120: 87 | L120: 0
B121: 88 | L121: =SUM(G121:K121) -> 0
B122: 89 | L122: =SUM(G122:K122) -> 0
B123: 90 | L123: 0
B124: 91 | L124: =SUM(G124:K124) -> 0
B125: 92 | L125: 0
B126: 93 | L126: 0
B127: 94 | L127: 0
B128: 95 | L128: =SUM(G128:K128) -> 0
B129: 96 | L129: 0
B130: 97 | L130: 0
B131: 98 | L131: 0
B132: 99 | L132: 0
B133: 100 | L133: 0

Sheet 4. PEI
B1: STATE OF CALIFORNIA | Q1: Department of Health Care Services
B2: HEALTH AND HUMAN SERVICES AGENCY
B4: DHCS 1822 D (Rev. 10/18)
B5: ='1. Information'!B5 -> Annual Mental Health Services Act Revenue and Expenditure Report
B6: ='1. Information'!B6 -> Fiscal Year: 2022-23
B7: Prevention and Early Intervention (PEI) Summary
B9: County: | D9: =IF(ISBLANK('1. Information'!D11),"",'1. Information'!D11) -> San Benito | F9: Date: | G9: =IF(ISBLANK('1. Information'!D9),"",'1. Information'!D9) -> 2024-03-07
B11: SECTION ONE
F13: A | G13: B | H13: C | I13: D | J13: E | K13: F
F14: Total MHSA (Including Interest) | G14: Medi-Cal FFP | H14: 1991 Realignment | I14: Behavioral Health Subaccount | J14: Other | K14: Grand Total
B15: 1 | C15: PEI Annual Planning Costs | F15: =2728 -> 2728 | G15: 0 | H15: 0 | I15: 0 | J15: 0 | K15: =SUM(F15:J15) -> 2728
B16: 2 | C16: PEI Evaluation Costs | F16: 13992 | G16: 0 | H16: 0 | I16: 0 | J16: 0 | K16: =SUM(F16:J16) -> 13992
B17: 3 | C17: PEI Administration Costs | F17: =80882.89 -> 80882.89 | G17: 0 | H17: 0 | I17: 0 | J17: 0 | K17: 80882.89
B18: 4 | C18: PEI Funds Expended by CalMHSA for PEI SW | F18: 18017 | K18: 18017
B19: 5 | C19: PEI Funds Transferred to JPA | F19: 0 | K19: 0
B20: 6 | C20: PEI Expenditure Incurred by JPA | F20: 0 | K20: 0
B21: 7 | C21: PEI Program Expenditures | F21: =SUMIF($G$34:$G$133,"Combined Summary",L$34:L$133) + SUMIF($F$34:$F$133,"Standalone",L$34:L$133) -> 592607.51 | G21: =SUMIF($G$34:$G$133,"Combined Summary",M$34:M$133) + SUMIF($F$34:$F$133,"Standalone",M$34:M$133) -> 0 | H21: =SUMIF($G$34:$G$133,"Combined Summary",N$34:N$133) + SUMIF($F$34:$F$133,"Standalone",N$34:N$133) -> 0 | I21: =SUMIF($G$34:$G$133,"Combined Summary",O$34:O$133) + SUMIF($F$34:$F$133,"Standalone",O$34:O$133) -> 0 | J21: =SUMIF($G$34:$G$133,"Combined Summary",P$34:P$133) + SUMIF($F$34:$F$133,"Standalone",P$34:P$133) -> 0 | K21: 592607.51
B22: 8 | C22: Total PEI Expenditures (Excluding Transfers and PEI SW) | F22: =SUM(F15:F17,F20:F21) -> 690210.4 | G22: 0 | H22: 0 | I22: 0 | J22: 0 | K22: 690210.4
B24: SECTION TWO
E26: A | F26: B
E27: Percent Expended for Clients 25 and Under, All PEI | F27: Percent Expended for Clients 25 and Under, JPA
B28: 1 | D28: MHSA PEI Fund Expenditures in Program to Clients 25 and Under (calculated from weighted program values) divided by Total MHSA PEI Expenditures | E28: =IF(F22=0,"",((SUMPRODUCT($K$34:$K$133,$L$34:$L$133)+(F20*F28))/$F$22)) -> 0.8215048858 | F28: 0
B30: SECTION THREE
C32: A | D32: B | E32: C | F32: D | G32: E | H32: F | I32: G | J32: H | K32: I | L32: J | M32: K | N32: L | O32: M | P32: N | Q32: O
B33: # | C33: County | D33: Program Name | E33: Prior Program Name | F33: Combined/ Standalone | G33: Program Type | H33: Program Activity Name (in Combined Program) | I33: Subtotal Percentage for Combined Program | J33: % of PEI Expended on Clients 25 & Under (Standalone and Program Activities in Combined Program) | K33: % of PEI Expended on Clients 25 & Under (Combined Summary and Standalone) | L33: Total MHSA (Including Interest) | M33: Medi-Cal FFP | N33: 1991 Realignment | O33: Behavioral Health Subaccount | P33: Other | Q33: Grand Total | R33: Check | S33: Check
B34: 1 | C34: =IF(AND(NOT(COUNTA(D34:J34)),(NOT(COUNTA(L34:P34)))),"",VLOOKUP($D$9,Info_County_Code,2,FALSE)) -> 35 | D34: Community Solutions | F34: Standalone | G34: Prevention | I34: 1 | J34: 1 | K34: =IF(OR(G34="Combined Summary",F34="Standalone"),(SUMPRODUCT(--(D$34:D$133=D34),I$34:I$133,J$34:J$133)),"") -> 1 | L34: 306452.18 | M34: 0 | N34: 0 | O34: 0 | P34: 0 | Q34: =SUM(L34:P34) -> 306452.18 | R34: =IF(OR(G34="Combined Summary",F34="Standalone"),(SUMIF(D$34:D$133,D34,I$34:I$133)),"") -> 1 | S34: =IF(AND(F34="Standalone",NOT(R34=1)),"ERROR",IF(AND(G34="Combined Summary",NOT(R34=1)),"ERROR","")) ->  | T34: NOTE TO COUNTY: For Programs designated as Standalone in Column D, enter 100.
B35: 2 | C35: 35 | D35: Transcend - C. Henriquez | F35: Standalone | G35: Early Intervention | I35: 1 | J35: 0 | K35: =IF(OR(G35="Combined Summary",F35="Standalone"),(SUMPRODUCT(--(D$34:D$133=D35),I$34:I$133,J$34:J$133)),"") -> 0 | L35: 2966.46 | M35: 0 | N35: 0 | O35: 0 | P35: 0 | Q35: =SUM(L35:P35) -> 2966.46 | R35: =IF(OR(G35="Combined Summary",F35="Standalone"),(SUMIF(D$34:D$133,D35,I$34:I$133)),"") -> 1 | S35: =IF(AND(F35="Standalone",NOT(R35=1)),"ERROR",IF(AND(G35="Combined Summary",NOT(R35=1)),"ERROR","")) ->  | T35: The sum of percentages reported for Program Activities in a Combined Program must equal 100. If ERROR, recheck and correct.
B36: 3 | C36: 35 | D36: Suicide Prevention Services | F36: Standalone | G36: Suicide Prevention | I36: 1 | J36: 0.82 | K36: 0.82 | L36: 23502.5 | M36: 0 | N36: 0 | O36: 0 | P36: 0 | Q36: 23502.5 | R36: 1
B37: 4 | C37: 35 | D37: San Benito Clinical Services - Older Adult | F37: Standalone | G37: Suicide Prevention | I37: 1 | J37: 0 | K37: 0 | L37: 15592.7 | M37: 0 | N37: 0 | O37: 0 | P37: 0 | Q37: 15592.7 | R37: 1
B38: 5 | C38: 35 | D38: San Benito Clinical Services - LGBTQ | F38: Standalone | G38: Stigma & Discrimination Reduction | I38: 1 | J38: 1 | K38: 1 | L38: 15592.7 | M38: 0 | N38: 0 | O38: 0 | P38: 0 | Q38: 15592.7 | R38: 1
B39: 6 | C39: 35 | D39: San Benito Clinical Services - School Based | F39: Standalone | G39: Prevention | I39: 1 | J39: 1 | K39: 1 | L39: 212908.28 | M39: 0 | N39: 0 | O39: 0 | P39: 0 | Q39: 212908.28 | R39: 1
B40: 7 | C40: 35 | D40: San Benito Clinical Services - SAFE | F40: Standalone | G40: Early Intervention | I40: 1 | J40: 0.82 | K40: 0.82 | L40: 15592.69 | M40: 0 | N40: 0 | O40: 0 | P40: 0 | Q40: 15592.69 | R40: 1
B41: 8 | Q41: 0
B42: 9 | Q42: 0
B43: 10 | Q43: 0
B44: 11 | Q44: 0
B45: 12 | Q45: 0
B46: 13 | Q46: 0
B47: 14 | Q47: 0
B48: 15 | Q48: 0
B49: 16 | Q49: 0
B50: 17 | Q50: 0
B51: 18 | Q51: 0
B52: 19 | Q52: 0
B53: 20 | Q53: 0
B54: 21 | Q54: 0
B55: 22 | Q55: 0
B56: 23 | Q56: 0
B57: 24 | Q57: 0
B58: 25 | Q58: 0
B59: 26 | Q59: 0
B60: 27 | Q60: 0
B61: 28 | Q61: 0
B62: 29 | Q62: 0
B63: 30 | Q63: 0
B64: 31 | Q64: 0
B65: 32 | Q65: 0
B66: 33 | C66: =IF(AND(NOT(COUNTA(D66:J66)),(NOT(COUNTA(L66:P66)))),"",VLOOKUP($D$9,Info_County_Code,2,FALSE)) ->  | Q66: 0
B67: 34 | Q67: 0
B68: 35 | Q68: 0
B69: 36 | Q69: 0
B70: 37 | Q70: 0
B71: 38 | Q71: 0
B72: 39 | Q72: 0
B73: 40 | Q73: 0
B74: 41 | Q74: 0
B75: 42 | Q75: 0
B76: 43 | Q76: 0
B77: 44 | Q77: 0
B78: 45 | Q78: 0
B79: 46 | Q79: 0
B80: 47 | Q80: 0
B81: 48 | Q81: 0
B82: 49 | Q82: 0
B83: 50 | Q83: 0
B84: 51 | Q84: 0
B85: 52 | Q85: 0
B86: 53 | Q86: 0
B87: 54 | Q87: 0
B88: 55 | Q88: 0
B89: 56 | Q89: 0
B90: 57 | Q90: 0
B91: 58 | Q91: =SUM(L91:P91) -> 0
B92: 59 | Q92: 0
B93: 60 | Q93: 0
B94: 61 | Q94: 0
B95: 62 | Q95: 0
B96: 63 | Q96: 0
B97: 64 | Q97: 0
B98: 65 | C98: =IF(AND(NOT(COUNTA(D98:J98)),(NOT(COUNTA(L98:P98)))),"",VLOOKUP($D$9,Info_County_Code,2,FALSE)) ->  | Q98: 0
B99: 66 | K99: =IF(OR(G99="Combined Summary",F99="Standalone"),(SUMPRODUCT(--(D$34:D$133=D99),I$34:I$133,J$34:J$133)),"") ->  | Q99: =SUM(L99:P99) -> 0 | R99: =IF(OR(G99="Combined Summary",F99="Standalone"),(SUMIF(D$34:D$133,D99,I$34:I$133)),"") ->  | S99: =IF(AND(F99="Standalone",NOT(R99=1)),"ERROR",IF(AND(G99="Combined Summary",NOT(R99=1)),"ERROR","")) -> 
B100: 67 | Q100: 0
B101: 68 | Q101: 0
B102: 69 | Q102: 0
B103: 70 | Q103: 0
B104: 71 | Q104: 0
B105: 72 | Q105: =SUM(L105:P105) -> 0
B106: 73 | Q106: =SUM(L106:P106) -> 0
B107: 74 | Q107: 0
B108: 75 | Q108: 0
B109: 76 | Q109: 0
B110: 77 | Q110: 0
B111: 78 | Q111: 0
B112: 79 | Q112: 0
B113: 80 | Q113: 0
B114: 81 | Q114: 0
B115: 82 | Q115: 0
B116: 83 | Q116: 0
B117: 84 | Q117: 0
B118: 85 | Q118: 0
B119: 86 | Q119: 0
B120: 87 | Q120: 0
B121: 88 | Q121: =SUM(L121:P121) -> 0
B122: 89 | Q122: =SUM(L122:P122) -> 0
B123: 90 | Q123: 0
B124: 91 | Q124: 0
B125: 92 | Q125: 0
B126: 93 | Q126: 0
B127: 94 | Q127: 0
B128: 95 | Q128: 0
B129: 96 | Q129: 0
B130: 97 | C130: =IF(AND(NOT(COUNTA(D130:J130)),(NOT(COUNTA(L130:P130)))),"",VLOOKUP($D$9,Info_County_Code,2,FALSE)) ->  | Q130: 0
B131: 98 | C131: =IF(AND(NOT(COUNTA(D131:J131)),(NOT(COUNTA(L131:P131)))),"",VLOOKUP($D$9,Info_County_Code,2,FALSE)) ->  | Q131: 0
B132: 99 | C132: =IF(AND(NOT(COUNTA(D132:J132)),(NOT(COUNTA(L132:P132)))),"",VLOOKUP($D$9,Info_County_Code,2,FALSE)) ->  | Q132: 0
B133: 100 | C133: =IF(AND(NOT(COUNTA(D133:J133)),(NOT(COUNTA(L133:P133)))),"",VLOOKUP($D$9,Info_County_Code,2,FALSE)) ->  | Q133: 0

Sheet 5. INN
B1: STATE OF CALIFORNIA
B2: HEALTH AND HUMAN SERVICES AGENCY
B4: DHCS 1822 E (Rev. 10/18)
B5: ='1. Information'!B5 -> Annual Mental Health Services Act Revenue and Expenditure Report
B6: ='1. Information'!B6 -> Fiscal Year: 2022-23
B7: Innovation (INN) Summary
B9: County: | D9: =IF(ISBLANK('1. Information'!D11),"",'1. Information'!D11) -> San Benito | F9: Date: | G9: =IF(ISBLANK('1. Information'!D9),"",'1. Information'!D9) -> 2024-03-07
B11: SECTION ONE
F13: A | G13: B | H13: C | I13: D | J13: E | K13: F
F14: Total MHSA (Including Interest) | G14: Medi-Cal FFP | H14: 1991 Realignment | I14: Behavioral Health Subaccount | J14: Other | K14: Grand Total
B15: 1 | C15: INN Annual Planning Costs | F15: 172 | G15: 0 | H15: 0 | I15: 0 | J15: 0 | K15: =SUM(F15:J15) -> 172
B16: 2 | C16: INN Indirect Administration | F16: 46434.12 | G16: 0 | H16: 0 | I16: 0 | J16: 0 | K16: 46434.12
B17: 3 | C17: INN Funds Transferred to JPA | K17: 0
B18: 4 | C18: INN Expenditure Incurred by JPA | K18: 0
B19: 5 | C19: INN Project Administration | F19: =SUMIF($J$29:$J$132,"Project Administration",K$29:K$132) -> 0 | G19: =SUMIF($J$29:$J$132,"Project Administration",L$29:L$132) -> 0 | H19: =SUMIF($J$29:$J$132,"Project Administration",M$29:M$132) -> 0 | I19: =SUMIF($J$29:$J$132,"Project Administration",N$29:N$132) -> 0 | J19: =SUMIF($J$29:$J$132,"Project Administration",O$29:O$132) -> 0 | K19: 0
B20: 6 | C20: INN Project Evaluation | F20: =SUMIF($J$29:$J$132,"Project Evaluation",K$29:K$132) -> 2552 | G20: =SUMIF($J$29:$J$132,"Project Evaluation",L$29:L$132) -> 0 | H20: =SUMIF($J$29:$J$132,"Project Evaluation",M$29:M$132) -> 0 | I20: =SUMIF($J$29:$J$132,"Project Evaluation",N$29:N$132) -> 0 | J20: =SUMIF($J$29:$J$132,"Project Evaluation",O$29:O$132) -> 0 | K20: 2552
B21: 7 | C21: INN Project Direct | F21: =SUMIF($J$29:$J$132,"Project Direct",K$29:K$132) -> 347012.54 | G21: =SUMIF($J$29:$J$132,"Project Direct",L$29:L$132) -> 0 | H21: =SUMIF($J$29:$J$132,"Project Direct",M$29:M$132) -> 0 | I21: =SUMIF($J$29:$J$132,"Project Direct",N$29:N$132) -> 0 | J21: =SUMIF($J$29:$J$132,"Project Direct",O$29:O$132) -> 0 | K21: 347012.54
B22: 8 | E22: INN Project Subtotal | F22: =SUM(F19:F21) -> 349564.54 | G22: 0 | H22: 0 | I22: 0 | J22: 0 | K22: 349564.54
B23: 9 | C23: Total Innovation Expenditures (Excluding Transfers to JPA) | F23: =SUM(F15:F16,F18,F19:F21) -> 396170.66 | G23: 0 | H23: 0 | I23: 0 | J23: 0 | K23: 396170.66
B25: SECTION TWO
C27: A | D27: B | E27: C | F27: D | G27: E | H27: F | I27: G | J27: H | K27: I | L27: J | M27: K | N27: L | O27: M | P27: N
B28: # | C28: County | D28: Project Name | E28: Prior Project Name | F28: Project MHSOAC Approval Date | G28: Project Start Date | H28: MHSOAC-Authorized MHSA INN Project Budget | I28: Amended MHSOAC-Authorized MHSA INN Project Budget | J28: Project Expenditure Type | K28: Total MHSA (Including Interest) | L28: Medi-Cal FFP | M28: 1991 Realignment | N28: BH Subaccount | O28: Other | P28: Grand Total
B29: 1 | C29: =IF(P32<>0,VLOOKUP($D$9,Info_County_Code,2,FALSE),"") -> 35 | D29: Behavioral Health Diversion & Reentry Court Intervention | F29: 2019-01-24 | G29: 2019-05-01 | H29: 2264566 | J29: Project Administration | K29: 0 | L29: 0 | M29: 0 | N29: 0 | O29: 0 | P29: =SUM(K29:O29) -> 0
B30: 1 | C30: =IF(ISBLANK(C29),"",C29) -> 35 | D30: Behavioral Health Diversion & Reentry Court Intervention | F30: 2019-01-24 | G30: 2019-05-01 | H30: 2264566 | J30: Project Evaluation | K30: 2552 | L30: 0 | M30: 0 | N30: 0 | O30: 0 | P30: 2552
B31: 1 | C31: =IF(ISBLANK(C29),"",C29) -> 35 | D31: Behavioral Health Diversion & Reentry Court Intervention | F31: 2019-01-24 | G31: 2019-05-01 | H31: 2264566 | J31: Project Direct | K31: =273122.37+38048.2+35841.96+0.01 -> 347012.54 | L31: 0 | M31: 0 | N31: 0 | O31: 0 | P31: 347012.54
B32: 1 | C32: =IF(ISBLANK(C29),"",C29) -> 35 | D32: Behavioral Health Diversion & Reentry Court Intervention | F32: 2019-01-24 | G32: 2019-05-01 | H32: 2264566 | J32: Project Subtotal | K32: =SUM(K29:K31) -> 349564.54 | L32: =SUM(L29:L31) -> 0 | M32: =SUM(M29:M31) -> 0 | N32: =SUM(N29:N31) -> 0 | O32: =SUM(O29:O31) -> 0 | P32: 349564.54
B33: 2 | C33: =IF(P36<>0,VLOOKUP($D$9,Info_County_Code,2,FALSE),"") ->  | J33: =IF(NOT(ISBLANK(D33)),$J$29,"") ->  | P33: =SUM(K33:O33) -> 0
B34: 2 | C34: =IF(ISBLANK(C33),"",C33) ->  | J34: =IF(NOT(ISBLANK(D33)),$J$30,"") ->  | P34: =SUM(K34:O34) -> 0
B35: 2 | C35: =IF(ISBLANK(C33),"",C33) ->  | J35: =IF(NOT(ISBLANK(D33)),$J$31,"") ->  | P35: =SUM(K35:O35) -> 0
B36: 2 | C36: =IF(ISBLANK(C33),"",C33) ->  | J36: =IF(NOT(ISBLANK(D33)),$J$32,"") ->  | K36: =SUM(K33:K35) -> 0 | L36: =SUM(L33:L35) -> 0 | M36: =SUM(M33:M35) -> 0 | N36: =SUM(N33:N35) -> 0 | O36: =SUM(O33:O35) -> 0 | P36: =SUM(K36:O36) -> 0
B37: 2 | C37: =IF(P40<>0,VLOOKUP($D$9,Info_County_Code,2,FALSE),"") ->  | J37: =IF(NOT(ISBLANK(D37)),$J$29,"") ->  | P37: 0
B38: 2 | C38: =IF(ISBLANK(C37),"",C37) ->  | J38: =IF(NOT(ISBLANK(D37)),$J$30,"") ->  | P38: 0
B39: 2 | C39: =IF(ISBLANK(C37),"",C37) ->  | J39: =IF(NOT(ISBLANK(D37)),$J$31,"") ->  | P39: 0
B40: 2 | C40: =IF(ISBLANK(C37),"",C37) ->  | J40: =IF(NOT(ISBLANK(D37)),$J$32,"") ->  | K40: =SUM(K37:K39) -> 0 | L40: =SUM(L37:L39) -> 0 | M40: =SUM(M37:M39) -> 0 | N40: =SUM(N37:N39) -> 0 | O40: =SUM(O37:O39) -> 0 | P40: 0
B41: 3 | C41: =IF(P44<>0,VLOOKUP($D$9,Info_County_Code,2,FALSE),"") ->  | J41: =IF(NOT(ISBLANK(D41)),$J$29,"") ->  | P41: 0
B42: 3 | C42: =IF(ISBLANK(C41),"",C41) ->  | J42: =IF(NOT(ISBLANK(D41)),$J$30,"") ->  | P42: 0
B43: 3 | C43: =IF(ISBLANK(C41),"",C41) ->  | J43: =IF(NOT(ISBLANK(D41)),$J$31,"") ->  | P43: 0
B44: 3 | C44: =IF(ISBLANK(C41),"",C41) ->  | J44: =IF(NOT(ISBLANK(D41)),$J$32,"") ->  | K44: =SUM(K41:K43) -> 0 | L44: =SUM(L41:L43) -> 0 | M44: =SUM(M41:M43) -> 0 | N44: =SUM(N41:N43) -> 0 | O44: =SUM(O41:O43) -> 0 | P44: 0
B45: 4 | C45: =IF(P48<>0,VLOOKUP($D$9,Info_County_Code,2,FALSE),"") ->  | J45: =IF(NOT(ISBLANK(D45)),$J$29,"") ->  | P45: 0
B46: 4 | C46: =IF(ISBLANK(C45),"",C45) ->  | J46: =IF(NOT(ISBLANK(D45)),$J$30,"") ->  | P46: 0
B47: 4 | C47: =IF(ISBLANK(C45),"",C45) ->  | J47: =IF(NOT(ISBLANK(D45)),$J$31,"") ->  | P47: 0
B48: 4 | C48: =IF(ISBLANK(C45),"",C45) ->  | J48: =IF(NOT(ISBLANK(D45)),$J$32,"") ->  | K48: =SUM(K45:K47) -> 0 | L48: =SUM(L45:L47) -> 0 | M48: =SUM(M45:M47) -> 0 | N48: =SUM(N45:N47) -> 0 | O48: =SUM(O45:O47) -> 0 | P48: 0
B49: 5 | C49: =IF(P52<>0,VLOOKUP($D$9,Info_County_Code,2,FALSE),"") ->  | J49: =IF(NOT(ISBLANK(D49)),$J$29,"") ->  | P49: 0
B50: 5 | C50: =IF(ISBLANK(C49),"",C49) ->  | J50: =IF(NOT(ISBLANK(D49)),$J$30,"") ->  | P50: 0
B51: 5 | C51: =IF(ISBLANK(C49),"",C49) ->  | J51: =IF(NOT(ISBLANK(D49)),$J$31,"") ->  | P51: 0
B52: 5 | C52: =IF(ISBLANK(C49),"",C49) ->  | J52: =IF(NOT(ISBLANK(D49)),$J$32,"") ->  | K52: =SUM(K49:K51) -> 0 | L52: =SUM(L49:L51) -> 0 | M52: =SUM(M49:M51) -> 0 | N52: =SUM(N49:N51) -> 0 | O52: =SUM(O49:O51) -> 0 | P52: 0
B53: 6 | C53: =IF(P56<>0,VLOOKUP($D$9,Info_County_Code,2,FALSE),"") ->  | J53: =IF(NOT(ISBLANK(D53)),$J$29,"") ->  | P53: 0
B54: 6 | C54: =IF(ISBLANK(C53),"",C53) ->  | J54: =IF(NOT(ISBLANK(D53)),$J$30,"") ->  | P54: 0
B55: 6 | C55: =IF(ISBLANK(C53),"",C53) ->  | J55: =IF(NOT(ISBLANK(D53)),$J$31,"") ->  | P55: 0
B56: 6 | C56: =IF(ISBLANK(C53),"",C53) ->  | J56: =IF(NOT(ISBLANK(D53)),$J$32,"") ->  | K56: =SUM(K53:K55) -> 0 | L56: =SUM(L53:L55) -> 0 | M56: =SUM(M53:M55) -> 0 | N56: =SUM(N53:N55) -> 0 | O56: =SUM(O53:O55) -> 0 | P56: 0
B57: 7 | C57: =IF(P60<>0,VLOOKUP($D$9,Info_County_Code,2,FALSE),"") ->  | J57: =IF(NOT(ISBLANK(D57)),$J$29,"") ->  | P57: 0
B58: 7 | C58: =IF(ISBLANK(C57),"",C57) ->  | J58: =IF(NOT(ISBLANK(D57)),$J$30,"") ->  | P58: 0
B59: 7 | C59: =IF(ISBLANK(C57),"",C57) ->  | J59: =IF(NOT(ISBLANK(D57)),$J$31,"") ->  | P59: 0
B60: 7 | C60: =IF(ISBLANK(C57),"",C57) ->  | J60: =IF(NOT(ISBLANK(D57)),$J$32,"") ->  | K60: =SUM(K57:K59) -> 0 | L60: =SUM(L57:L59) -> 0 | M60: =SUM(M57:M59) -> 0 | N60: =SUM(N57:N59) -> 0 | O60: =SUM(O57:O59) -> 0 | P60: 0
B61: 8 | C61: =IF(P64<>0,VLOOKUP($D$9,Info_County_Code,2,FALSE),"") ->  | J61: =IF(NOT(ISBLANK(D61)),$J$29,"") ->  | P61: 0
B62: 8 | C62: =IF(ISBLANK(C61),"",C61) ->  | J62: =IF(NOT(ISBLANK(D61)),$J$30,"") ->  | P62: 0
B63: 8 | C63: =IF(ISBLANK(C61),"",C61) ->  | J63: =IF(NOT(ISBLANK(D61)),$J$31,"") ->  | P63: 0
B64: 8 | C64: =IF(ISBLANK(C61),"",C61) ->  | J64: =IF(NOT(ISBLANK(D61)),$J$32,"") ->  | K64: =SUM(K61:K63) -> 0 | L64: =SUM(L61:L63) -> 0 | M64: =SUM(M61:M63) -> 0 | N64: =SUM(N61:N63) -> 0 | O64: =SUM(O61:O63) -> 0 | P64: 0
B65: 9 | C65: =IF(P68<>0,VLOOKUP($D$9,Info_County_Code,2,FALSE),"") ->  | J65: =IF(NOT(ISBLANK(D65)),$J$29,"") ->  | P65: =SUM(K65:O65) -> 0
B66: 9 | C66: =IF(ISBLANK(C65),"",C65) ->  | J66: =IF(NOT(ISBLANK(D65)),$J$30,"") ->  | P66: 0
B67: 9 | C67: =IF(ISBLANK(C65),"",C65) ->  | J67: =IF(NOT(ISBLANK(D65)),$J$31,"") ->  | P67: 0
B68: 9 | C68: =IF(ISBLANK(C65),"",C65) ->  | J68: =IF(NOT(ISBLANK(D65)),$J$32,"") ->  | K68: =SUM(K65:K67) -> 0 | L68: =SUM(L65:L67) -> 0 | M68: =SUM(M65:M67) -> 0 | N68: =SUM(N65:N67) -> 0 | O68: =SUM(O65:O67) -> 0 | P68: 0
B69: 10 | C69: =IF(P72<>0,VLOOKUP($D$9,Info_County_Code,2,FALSE),"") ->  | J69: =IF(NOT(ISBLANK(D69)),$J$29,"") ->  | P69: 0
B70: 10 | C70: =IF(ISBLANK(C69),"",C69) ->  | J70: =IF(NOT(ISBLANK(D69)),$J$30,"") ->  | P70: 0
B71: 10 | C71: =IF(ISBLANK(C69),"",C69) ->  | J71: =IF(NOT(ISBLANK(D69)),$J$31,"") ->  | P71: 0
B72: 10 | C72: =IF(ISBLANK(C69),"",C69) ->  | J72: =IF(NOT(ISBLANK(D69)),$J$32,"") ->  | K72: =SUM(K69:K71) -> 0 | L72: =SUM(L69:L71) -> 0 | M72: =SUM(M69:M71) -> 0 | N72: =SUM(N69:N71) -> 0 | O72: =SUM(O69:O71) -> 0 | P72: 0
B73: 11 | C73: =IF(P76<>0,VLOOKUP($D$9,Info_County_Code,2,FALSE),"") ->  | J73: =IF(NOT(ISBLANK(D73)),$J$29,"") ->  | P73: 0
B74: 11 | C74: =IF(ISBLANK(C73),"",C73) ->  | J74: =IF(NOT(ISBLANK(D73)),$J$30,"") ->  | P74: 0
B75: 11 | C75: =IF(ISBLANK(C73),"",C73) ->  | J75: =IF(NOT(ISBLANK(D73)),$J$31,"") ->  | P75: 0
B76: 11 | C76: =IF(ISBLANK(C73),"",C73) ->  | J76: =IF(NOT(ISBLANK(D73)),$J$32,"") ->  | K76: =SUM(K73:K75) -> 0 | L76: =SUM(L73:L75) -> 0 | M76: =SUM(M73:M75) -> 0 | N76: =SUM(N73:N75) -> 0 | O76: =SUM(O73:O75) -> 0 | P76: 0
B77: 12 | C77: =IF(P80<>0,VLOOKUP($D$9,Info_County_Code,2,FALSE),"") ->  | J77: =IF(NOT(ISBLANK(D77)),$J$29,"") ->  | P77: 0
B78: 12 | C78: =IF(ISBLANK(C77),"",C77) ->  | J78: =IF(NOT(ISBLANK(D77)),$J$30,"") ->  | P78: 0
B79: 12 | C79: =IF(ISBLANK(C77),"",C77) ->  | J79: =IF(NOT(ISBLANK(D77)),$J$31,"") ->  | P79: 0
B80: 12 | C80: =IF(ISBLANK(C77),"",C77) ->  | J80: =IF(NOT(ISBLANK(D77)),$J$32,"") ->  | K80: =SUM(K77:K79) -> 0 | L80: =SUM(L77:L79) -> 0 | M80: =SUM(M77:M79) -> 0 | N80: =SUM(N77:N79) -> 0 | O80: =SUM(O77:O79) -> 0 | P80: 0
B81: 13 | C81: =IF(P84<>0,VLOOKUP($D$9,Info_County_Code,2,FALSE),"") ->  | J81: =IF(NOT(ISBLANK(D81)),$J$29,"") ->  | P81: 0
B82: 13 | C82: =IF(ISBLANK(C81),"",C81) ->  | J82: =IF(NOT(ISBLANK(D81)),$J$30,"") ->  | P82: 0
B83: 13 | C83: =IF(ISBLANK(C81),"",C81) ->  | J83: =IF(NOT(ISBLANK(D81)),$J$31,"") ->  | P83: 0
B84: 13 | C84: =IF(ISBLANK(C81),"",C81) ->  | J84: =IF(NOT(ISBLANK(D81)),$J$32,"") ->  | K84: =SUM(K81:K83) -> 0 | L84: =SUM(L81:L83) -> 0 | M84: =SUM(M81:M83) -> 0 | N84: =SUM(N81:N83) -> 0 | O84: =SUM(O81:O83) -> 0 | P84: 0
B85: 14 | C85: =IF(P88<>0,VLOOKUP($D$9,Info_County_Code,2,FALSE),"") ->  | J85: =IF(NOT(ISBLANK(D85)),$J$29,"") ->  | P85: 0
B86: 14 | C86: =IF(ISBLANK(C85),"",C85) ->  | J86: =IF(NOT(ISBLANK(D85)),$J$30,"") ->  | P86: 0
B87: 14 | C87: =IF(ISBLANK(C85),"",C85) ->  | J87: =IF(NOT(ISBLANK(D85)),$J$31,"") ->  | P87: 0
B88: 14 | C88: =IF(ISBLANK(C85),"",C85) ->  | J88: =IF(NOT(ISBLANK(D85)),$J$32,"") ->  | K88: =SUM(K85:K87) -> 0 | L88: =SUM(L85:L87) -> 0 | M88: =SUM(M85:M87) -> 0 | N88: =SUM(N85:N87) -> 0 | O88: =SUM(O85:O87) -> 0 | P88: 0
B89: 15 | C89: =IF(P92<>0,VLOOKUP($D$9,Info_County_Code,2,FALSE),"") ->  | J89: =IF(NOT(ISBLANK(D89)),$J$29,"") ->  | P89: =SUM(K89:O89) -> 0
B90: 15 | C90: =IF(ISBLANK(C89),"",C89) ->  | J90: =IF(NOT(ISBLANK(D89)),$J$30,"") ->  | P90: 0
B91: 15 | C91: =IF(ISBLANK(C89),"",C89) ->  | J91: =IF(NOT(ISBLANK(D89)),$J$31,"") ->  | P91: 0
B92: 15 | C92: =IF(ISBLANK(C89),"",C89) ->  | J92: =IF(NOT(ISBLANK(D89)),$J$32,"") ->  | K92: =SUM(K89:K91) -> 0 | L92: =SUM(L89:L91) -> 0 | M92: =SUM(M89:M91) -> 0 | N92: =SUM(N89:N91) -> 0 | O92: =SUM(O89:O91) -> 0 | P92: 0
B93: 16 | C93: =IF(P96<>0,VLOOKUP($D$9,Info_County_Code,2,FALSE),"") ->  | J93: =IF(NOT(ISBLANK(D93)),$J$29,"") ->  | P93: 0
B94: 16 | C94: =IF(ISBLANK(C93),"",C93) ->  | J94: =IF(NOT(ISBLANK(D93)),$J$30,"") ->  | P94: 0
B95: 16 | C95: =IF(ISBLANK(C93),"",C93) ->  | J95: =IF(NOT(ISBLANK(D93)),$J$31,"") ->  | P95: 0
B96: 16 | C96: =IF(ISBLANK(C93),"",C93) ->  | J96: =IF(NOT(ISBLANK(D93)),$J$32,"") ->  | K96: =SUM(K93:K95) -> 0 | L96: =SUM(L93:L95) -> 0 | M96: =SUM(M93:M95) -> 0 | N96: =SUM(N93:N95) -> 0 | O96: =SUM(O93:O95) -> 0 | P96: 0
B97: 17 | C97: =IF(P100<>0,VLOOKUP($D$9,Info_County_Code,2,FALSE),"") ->  | J97: =IF(NOT(ISBLANK(D97)),$J$29,"") ->  | P97: 0
B98: 17 | C98: =IF(ISBLANK(C97),"",C97) ->  | J98: =IF(NOT(ISBLANK(D97)),$J$30,"") ->  | P98: 0
B99: 17 | C99: =IF(ISBLANK(C97),"",C97) ->  | J99: =IF(NOT(ISBLANK(D97)),$J$31,"") ->  | P99: 0
B100: 17 | C100: =IF(ISBLANK(C97),"",C97) ->  | J100: =IF(NOT(ISBLANK(D97)),$J$32,"") ->  | K100: =SUM(K97:K99) -> 0 | L100: =SUM(L97:L99) -> 0 | M100: =SUM(M97:M99) -> 0 | N100: =SUM(N97:N99) -> 0 | O100: =SUM(O97:O99) -> 0 | P100: 0
B101: 18 | C101: =IF(P104<>0,VLOOKUP($D$9,Info_County_Code,2,FALSE),"") ->  | J101: =IF(NOT(ISBLANK(D101)),$J$29,"") ->  | P101: =SUM(K101:O101) -> 0
B102: 18 | C102: =IF(ISBLANK(C101),"",C101) ->  | J102: =IF(NOT(ISBLANK(D101)),$J$30,"") ->  | P102: =SUM(K102:O102) -> 0
B103: 18 | C103: =IF(ISBLANK(C101),"",C101) ->  | J103: =IF(NOT(ISBLANK(D101)),$J$31,"") ->  | P103: =SUM(K103:O103) -> 0
B104: 18 | C104: =IF(ISBLANK(C101),"",C101) ->  | J104: =IF(NOT(ISBLANK(D101)),$J$32,"") ->  | K104: =SUM(K101:K103) -> 0 | L104: =SUM(L101:L103) -> 0 | M104: =SUM(M101:M103) -> 0 | N104: =SUM(N101:N103) -> 0 | O104: =SUM(O101:O103) -> 0 | P104: =SUM(K104:O104) -> 0
B105: 19 | C105: =IF(P108<>0,VLOOKUP($D$9,Info_County_Code,2,FALSE),"") ->  | J105: =IF(NOT(ISBLANK(D105)),$J$29,"") ->  | P105: 0
B106: 19 | C106: =IF(ISBLANK(C105),"",C105) ->  | J106: =IF(NOT(ISBLANK(D105)),$J$30,"") ->  | P106: 0
B107: 19 | C107: =IF(ISBLANK(C105),"",C105) ->  | J107: =IF(NOT(ISBLANK(D105)),$J$31,"") ->  | P107: 0
B108: 19 | C108: =IF(ISBLANK(C105),"",C105) ->  | J108: =IF(NOT(ISBLANK(D105)),$J$32,"") ->  | K108: =SUM(K105:K107) -> 0 | L108: =SUM(L105:L107) -> 0 | M108: =SUM(M105:M107) -> 0 | N108: =SUM(N105:N107) -> 0 | O108: =SUM(O105:O107) -> 0 | P108: 0
B109: 20 | C109: =IF(P112<>0,VLOOKUP($D$9,Info_County_Code,2,FALSE),"") ->  | J109: =IF(NOT(ISBLANK(D109)),$J$29,"") ->  | P109: =SUM(K109:O109) -> 0
B110: 20 | C110: =IF(ISBLANK(C109),"",C109) ->  | J110: =IF(NOT(ISBLANK(D109)),$J$30,"") ->  | P110: =SUM(K110:O110) -> 0
B111: 20 | C111: =IF(ISBLANK(C109),"",C109) ->  | J111: =IF(NOT(ISBLANK(D109)),$J$31,"") ->  | P111: =SUM(K111:O111) -> 0
B112: 20 | C112: =IF(ISBLANK(C109),"",C109) ->  | J112: =IF(NOT(ISBLANK(D109)),$J$32,"") ->  | K112: =SUM(K109:K111) -> 0 | L112: =SUM(L109:L111) -> 0 | M112: =SUM(M109:M111) -> 0 | N112: =SUM(N109:N111) -> 0 | O112: =SUM(O109:O111) -> 0 | P112: =SUM(K112:O112) -> 0
B113: 21 | C113: =IF(P116<>0,VLOOKUP($D$9,Info_County_Code,2,FALSE),"") ->  | J113: =IF(NOT(ISBLANK(D113)),$J$29,"") ->  | P113: 0
B114: 21 | C114: =IF(ISBLANK(C113),"",C113) ->  | J114: =IF(NOT(ISBLANK(D113)),$J$30,"") ->  | P114: 0
B115: 21 | C115: =IF(ISBLANK(C113),"",C113) ->  | J115: =IF(NOT(ISBLANK(D113)),$J$31,"") ->  | P115: 0
B116: 21 | C116: =IF(ISBLANK(C113),"",C113) ->  | J116: =IF(NOT(ISBLANK(D113)),$J$32,"") ->  | K116: =SUM(K113:K115) -> 0 | L116: =SUM(L113:L115) -> 0 | M116: =SUM(M113:M115) -> 0 | N116: =SUM(N113:N115) -> 0 | O116: =SUM(O113:O115) -> 0 | P116: 0
B117: 22 | C117: =IF(P120<>0,VLOOKUP($D$9,Info_County_Code,2,FALSE),"") ->  | J117: =IF(NOT(ISBLANK(D117)),$J$29,"") ->  | P117: =SUM(K117:O117) -> 0
B118: 22 | C118: =IF(ISBLANK(C117),"",C117) ->  | J118: =IF(NOT(ISBLANK(D117)),$J$30,"") ->  | P118: =SUM(K118:O118) -> 0
B119: 22 | C119: =IF(ISBLANK(C117),"",C117) ->  | J119: =IF(NOT(ISBLANK(D117)),$J$31,"") ->  | P119: =SUM(K119:O119) -> 0
B120: 22 | C120: =IF(ISBLANK(C117),"",C117) ->  | J120: =IF(NOT(ISBLANK(D117)),$J$32,"") ->  | K120: =SUM(K117:K119) -> 0 | L120: =SUM(L117:L119) -> 0 | M120: =SUM(M117:M119) -> 0 | N120: =SUM(N117:N119) -> 0 | O120: =SUM(O117:O119) -> 0 | P120: =SUM(K120:O120) -> 0
B121: 23 | C121: =IF(P124<>0,VLOOKUP($D$9,Info_County_Code,2,FALSE),"") ->  | J121: =IF(NOT(ISBLANK(D121)),$J$29,"") ->  | P121: 0
B122: 23 | C122: =IF(ISBLANK(C121),"",C121) ->  | J122: =IF(NOT(ISBLANK(D121)),$J$30,"") ->  | P122: 0
B123: 23 | C123: =IF(ISBLANK(C121),"",C121) ->  | J123: =IF(NOT(ISBLANK(D121)),$J$31,"") ->  | P123: 0
B124: 23 | C124: =IF(ISBLANK(C121),"",C121) ->  | J124: =IF(NOT(ISBLANK(D121)),$J$32,"") ->  | K124: =SUM(K121:K123) -> 0 | L124: =SUM(L121:L123) -> 0 | M124: =SUM(M121:M123) -> 0 | N124: =SUM(N121:N123) -> 0 | O124: =SUM(O121:O123) -> 0 | P124: 0
B125: 24 | C125: =IF(P128<>0,VLOOKUP($D$9,Info_County_Code,2,FALSE),"") ->  | J125: =IF(NOT(ISBLANK(D125)),$J$29,"") ->  | P125: =SUM(K125:O125) -> 0
B126: 24 | C126: =IF(ISBLANK(C125),"",C125) ->  | J126: =IF(NOT(ISBLANK(D125)),$J$30,"") ->  | P126: =SUM(K126:O126) -> 0
B127: 24 | C127: =IF(ISBLANK(C125),"",C125) ->  | J127: =IF(NOT(ISBLANK(D125)),$J$31,"") ->  | P127: =SUM(K127:O127) -> 0
B128: 24 | C128: =IF(ISBLANK(C125),"",C125) ->  | J128: =IF(NOT(ISBLANK(D125)),$J$32,"") ->  | K128: =SUM(K125:K127) -> 0 | L128: =SUM(L125:L127) -> 0 | M128: =SUM(M125:M127) -> 0 | N128: =SUM(N125:N127) -> 0 | O128: =SUM(O125:O127) -> 0 | P128: =SUM(K128:O128) -> 0
B129: 25 | C129: =IF(P132<>0,VLOOKUP($D$9,Info_County_Code,2,FALSE),"") ->  | J129: =IF(NOT(ISBLANK(D129)),$J$29,"") ->  | P129: 0
B130: 25 | C130: =IF(ISBLANK(C129),"",C129) ->  | J130: =IF(NOT(ISBLANK(D129)),$J$30,"") ->  | P130: 0
B131: 25 | C131: =IF(ISBLANK(C129),"",C129) ->  | J131: =IF(NOT(ISBLANK(D129)),$J$31,"") ->  | P131: 0
B132: 25 | C132: =IF(ISBLANK(C129),"",C129) ->  | J132: =IF(NOT(ISBLANK(D129)),$J$32,"") ->  | K132: =SUM(K129:K131) -> 0 | L132: =SUM(L129:L131) -> 0 | M132: =SUM(M129:M131) -> 0 | N132: =SUM(N129:N131) -> 0 | O132: =SUM(O129:O131) -> 0 | P132: 0

Sheet 6. WET
B1: STATE OF CALIFORNIA | K1: Department of Health Care Services
B2: HEALTH AND HUMAN SERVICES AGENCY
B4: DHCS 1822 F (Rev. 10/18)
B5: ='1. Information'!B5 -> Annual Mental Health Services Act Revenue and Expenditure Report
B6: ='1. Information'!B6 -> Fiscal Year: 2022-23
B7: Workforce Education and Training (WET) Summary
C9: County: | D9: =IF(ISBLANK('1. Information'!D11),"",'1. Information'!D11) -> San Benito | F9: Date: | G9: =IF(ISBLANK('1. Information'!D9),"",'1. Information'!D9) -> 2024-03-07
B11: SECTION ONE
F13: A | G13: B | H13: C | I13: D | J13: E | K13: F
F14: Total MHSA (Including Interest) | G14: Medi-Cal FFP | H14: 1991 Realignment | I14: Behavioral Health Subaccount | J14: Other | K14: Grand Total
B15: 1 | C15: WET Annual Planning Costs | F15: 9137 | G15: 0 | H15: 0 | I15: 0 | J15: 0 | K15: =SUM(F15:J15) -> 9137
B16: 2 | C16: WET Evaluation Costs | G16: 0 | H16: 0 | I16: 0 | J16: 0 | K16: 0
B17: 3 | C17: WET Administration Costs | F17: 12022.86 | G17: 0 | H17: 0 | I17: 0 | J17: 0 | K17: 12022.86
B18: 4 | C18: WET Funds Transferred to JPA | F18: 0 | K18: 0
B19: 5 | C19: WET Expenditure Incurred by JPA | F19: 0 | K19: 0
B20: 6 | C20: WET Program Expenditures | F20: =SUM(E28:E32) -> 81417.84 | G20: =SUM(F28:F32) -> 0 | H20: =SUM(G28:G32) -> 0 | I20: =SUM(H28:H32) -> 0 | J20: =SUM(I28:I32) -> 0 | K20: 81417.84
B21: 7 | C21: Total WET Expenditures (Excluding Transfers to JPA) | F21: =SUM(F15:F17,F19:F20) -> 102577.7 | G21: 0 | H21: 0 | I21: 0 | J21: 0 | K21: 102577.7
B24: SECTION TWO
C26: A | D26: B | E26: C | F26: D | G26: E | H26: F | I26: G | J26: H
B27: # | C27: County | D27: Funding Category | E27: Total MHSA (Including Interest) | F27: Medi-Cal FFP | G27: 1991 Realignment | H27: Behavioral Health Subaccount | I27: Other | J27: Grand Total
B28: 1 | C28: =IF(J28<>0,VLOOKUP($D$9,Info_County_Code,2,FALSE),"") ->  | D28: Workforce Staffing | J28: =SUM(E28:I28) -> 0
B29: 2 | C29: 35 | D29: Training/Technical Assistance | E29: =72137.53+9280.31 -> 81417.84 | J29: 81417.84
B30: 3 | D30: MH Career Pathways | J30: 0
B31: 4 | D31: Residency/Internship | J31: 0
B32: 5 | D32: Financial Incentive | J32: 0
B33: 6 | D33: WET Regional Partnerships (WET RP) | J33: 0

Sheet 7. CFTN
B1: STATE OF CALIFORNIA | L1: Department of Health Care Services
B2: HEALTH AND HUMAN SERVICES AGENCY
B4: DHCS 1822 G (Rev. 10/18)
B5: ='1. Information'!B5 -> Annual Mental Health Services Act Revenue and Expenditure Report
B6: ='1. Information'!B6 -> Fiscal Year: 2022-23
B7: Capital Facility Technological Needs (CFTN) Summary
B9: County: | D9: =IF(ISBLANK('1. Information'!D11),"",'1. Information'!D11) -> San Benito | F9: Date: | G9: =IF(ISBLANK('1. Information'!D9),"",'1. Information'!D9) -> 2024-03-07
B11: SECTION ONE
F13: A | G13: B | H13: C | I13: D | J13: E | K13: F
F14: Total MHSA (Including Interest) | G14: Medi-Cal FFP | H14: 1991 Realignment | I14: Behavioral Health Subaccount | J14: Other | K14: Grand Total
B15: 1 | C15: CF Annual Planning Costs | F15: 0 | G15: 0 | H15: 0 | I15: 0 | J15: 0 | K15: =SUM(F15:J15) -> 0
B16: 2 | C16: TN Annual Planning Costs | F16: 0 | G16: 0 | H16: 0 | I16: 0 | J16: 0 | K16: =SUM(F16:J16) -> 0
B17: 3 | C17: CF Evaluation Costs | F17: 0 | G17: 0 | H17: 0 | I17: 0 | J17: 0 | K17: 0
B18: 4 | C18: TN Evaluation Costs | F18: 0 | G18: 0 | H18: 0 | I18: 0 | J18: 0 | K18: 0
B19: 5 | C19: CF Administration | F19: 153842.33 | G19: 0 | H19: 0 | I19: 0 | J19: 0 | K19: 153842.33
B20: 6 | C20: TN Administration | F20: 0 | G20: 0 | H20: 0 | I20: 0 | J20: 0 | K20: 0
B21: 7 | C21: CFTN Program Expenditure | F21: =SUM(G28:G47) -> 1150294.46 | G21: =SUM(H28:H47) -> 0 | H21: =SUM(I28:I47) -> 0 | I21: =SUM(J28:J47) -> 0 | J21: =SUM(K28:K47) -> 0 | K21: 1150294.46
B22: 8 | C22: Total CFTN Expenditures | F22: =SUM(F15:F21) -> 1304136.79 | G22: 0 | H22: 0 | I22: 0 | J22: 0 | K22: 1304136.79
B24: SECTION TWO
C26: A | D26: B | E26: C | F26: D | G26: E | H26: F | I26: G | J26: H | K26: I | L26: J
B27: # | C27: County | D27: Project Name | E27: Prior Project Name | F27: Project Type | G27: Total MSHA (Including Interest) | H27: Medi-Cal FFP | I27: 1991 Realignment | J27: Behavioral Health Subaccount | K27: Other | L27: Grand Total
B28: 1 | C28: =IF(L28<>0,VLOOKUP($D$9,Info_County_Code,2,FALSE),"") -> 35 | D28: New BH Building | F28: Capital Facility | G28: =360745.77+38268.01 -> 399013.78 | H28: 0 | I28: 0 | J28: 0 | K28: 0 | L28: =SUM(G28:K28) -> 399013.78
B29: 2 | C29: 35 | D29: Electronic Health Record (E.H.R.) Implementation | F29: Technological Need | G29: =679228+72052.68 -> 751280.68 | L29: =SUM(G29:K29) -> 751280.68
B30: 3 | L30: 0
B31: 4 | L31: 0
B32: 5 | L32: 0
B33: 6 | L33: 0
B34: 7 | L34: 0
B35: 8 | L35: 0
B36: 9 | L36: 0
B37: 10 | L37: 0
B38: 11 | L38: 0
B39: 12 | L39: 0
B40: 13 | L40: 0
B41: 14 | L41: 0
B42: 15 | L42: 0
B43: 16 | L43: 0
B44: 17 | L44: 0
B45: 18 | L45: 0
B46: 19 | L46: 0
B47: 20 | L47: 0

Sheet 8. Adjustment (MHSA)
B1: STATE OF CALIFORNIA | G1: Department of Health Care Services
B2: HEALTH AND HUMAN SERVICES AGENCY
B4: DHCS 1822 H (Rev. 10/18)
B5: ='1. Information'!B5 -> Annual Mental Health Services Act Revenue and Expenditure Report
B6: ='1. Information'!B6 -> Fiscal Year: 2022-23
B7: Adjustments Worksheet (MHSA)
B9: County: | D9: =IF(ISBLANK('1. Information'!D11),"",'1. Information'!D11) -> San Benito | F9: Date | G9: =IF(ISBLANK('1. Information'!D9),"",'1. Information'!D9) -> 2024-03-07
B11: SECTION ONE
C13: A | D13: B | E13: C | F13: D | G13: E
B14: # | C14: County | D14: Component | E14: Adjustment to FY | F14: Amount | G14: Reason
B15: 1 | C15: =IF(F15<>0,VLOOKUP($D$9,Info_County_Code,2,FALSE),"") -> 
B16: 2
B17: 3
B18: 4
B19: 5
B20: 6
B21: 7
B22: 8
B23: 9
B24: 10
B25: 11
B26: 12
B27: 13
B28: 14
B29: 15
B30: 16
B31: 17
B32: 18
B33: 19
B34: 20
B35: 21
B36: 22
B37: 23
B38: 24
B39: 25
B40: 26
B41: 27
B42: 28
B43: 29
B44: 30
C45: =IF(NOT(COUNTA(D45:G45)),"",VLOOKUP(D23,Info_County_Code,2,FALSE)) -> 
B46: SECTION TWO
C48: A | D48: B | E48: C | F48: D | G48: E
B49: # | C49: County | D49: Adjustment to | E49: Adjustment to FY | F49: Amount | G49: Reason
B50: 1 | C50: =IF(F50<>0,VLOOKUP($D$9,Info_County_Code,2,FALSE),"") ->  | D50: Interest Revenue
B51: 2 | D51: Interest Revenue
B52: 3 | D52: Interest Revenue
B53: 4 | D53: Interest Revenue
B54: 5 | D54: Interest Revenue
B55: 6 | D55: Interest Revenue
B56: 7 | D56: Interest Revenue
B57: 8 | D57: Interest Revenue
B58: 9 | D58: Interest Revenue
B59: 10 | D59: Interest Revenue
B60: 11 | D60: Interest Revenue
B61: 12 | D61: Interest Revenue
B62: 13 | D62: Interest Revenue
B63: 14 | D63: Interest Revenue
B64: 15 | D64: Interest Revenue
B65: 16 | D65: Interest Revenue
B66: 17 | D66: Interest Revenue
B67: 18 | D67: Interest Revenue
B68: 19 | D68: Interest Revenue
B69: 20 | D69: Interest Revenue
B70: 21 | D70: Interest Revenue
B71: 22 | D71: Interest Revenue
B72: 23 | D72: Interest Revenue
B73: 24 | D73: Interest Revenue
B74: 25 | D74: Interest Revenue
B75: 26 | D75: Interest Revenue
B76: 27 | D76: Interest Revenue
B77: 28 | D77: Interest Revenue
B78: 29 | D78: Interest Revenue
B79: 30 | D79: Interest Revenue
B81: SECTION THREE
C83: A | D83: B | E83: C | F83: D | G83: E
B84: # | C84: County | D84: Adjustment to | E84: Adjustment to FY | F84: Amount | G84: Reason
B85: 1 | C85: =IF(F85<>0,VLOOKUP($D$9,Info_County_Code,2,FALSE),"") ->  | D85: Prudent Reserve
B86: 2 | D86: Prudent Reserve
B87: 3 | D87: Prudent Reserve
B88: 4 | D88: Prudent Reserve
B89: 5 | D89: Prudent Reserve
B90: 6 | D90: Prudent Reserve
B91: 7 | D91: Prudent Reserve
B92: 8 | D92: Prudent Reserve
B93: 9 | D93: Prudent Reserve
B94: 10 | D94: Prudent Reserve
B95: 11 | D95: Prudent Reserve
B96: 12 | D96: Prudent Reserve
B97: 13 | D97: Prudent Reserve
B98: 14 | D98: Prudent Reserve
B99: 15 | D99: Prudent Reserve
B100: 16 | D100: Prudent Reserve
B101: 17 | D101: Prudent Reserve
B102: 18 | D102: Prudent Reserve
B103: 19 | D103: Prudent Reserve
B104: 20 | D104: Prudent Reserve
B105: 21 | D105: Prudent Reserve
B106: 22 | D106: Prudent Reserve
B107: 23 | D107: Prudent Reserve
B108: 24 | D108: Prudent Reserve
B109: 25 | D109: Prudent Reserve
B110: 26 | D110: Prudent Reserve
B111: 27 | D111: Prudent Reserve
B112: 28 | D112: Prudent Reserve
B113: 29 | D113: Prudent Reserve
B114: 30 | D114: Prudent Reserve

Sheet 9. Adjustment (FFP)
B1: STATE OF CALIFORNIA | I1: Department of Health Care Services
B2: HEALTH AND HUMAN SERVICES AGENCY
B4: DHCS 1822 I (Rev. 10/18)
B5: ='1. Information'!B5 -> Annual Mental Health Services Act Revenue and Expenditure Report
B6: ='1. Information'!B6 -> Fiscal Year: 2022-23
B7: FFP Revenue Adjustment
B9: County: | D9: =IF(ISBLANK('1. Information'!D11),"",'1. Information'!D11) -> San Benito | F9: Date: | G9: =IF(ISBLANK('1. Information'!D9),"",'1. Information'!D9) -> 2024-03-07
B11: SECTION ONE
C13: A | D13: B | E13: C | F13: D | G13: E | H13: F | I13: G
B14: # | C14: County | D14: Fiscal Year | E14: Cost Report Stage | F14: Component | G14: Beginning Balance | H14: Adjustment Amount | I14: Ending Balance
B15: 1 | C15: =IF(I15<>0,VLOOKUP($D$9,Info_County_Code,2,FALSE),"") ->  | I15: =SUM(G15:H15) -> 0
B16: 2 | I16: =SUM(G16:H16) -> 0
B17: 3 | I17: 0
B18: 4 | I18: 0
B19: 5 | I19: 0
B20: 6 | I20: 0
B21: 7 | I21: 0
B22: 8 | I22: 0
B23: 9 | I23: 0
B24: 10 | I24: 0
B25: 11 | I25: 0
B26: 12 | I26: 0
B27: 13 | I27: 0
B28: 14 | I28: 0
B29: 15 | I29: 0
B30: 16 | I30: 0
B31: 17 | I31: 0
B32: 18 | I32: 0
B33: 19 | I33: 0
B34: 20 | I34: 0
B35: 21 | I35: 0
B36: 22 | I36: 0
B37: 23 | I37: 0
B38: 24 | I38: 0
B39: 25 | I39: 0
B40: 26 | I40: 0
B41: 27 | I41: 0
B42: 28 | I42: 0
B43: 29 | I43: 0
B44: 30 | I44: 0
B45: 31 | I45: 0
B46: 32 | I46: 0
B47: 33 | I47: 0
B48: 34 | I48: 0
B49: 35 | I49: 0
B50: 36 | I50: 0
B51: 37 | I51: 0
B52: 38 | I52: 0
B53: 39 | I53: 0
B54: 40 | I54: 0

Sheet 10. Comments
B1: STATE OF CALIFORNIA | F1: Department of Health Care Services
B2: HEALTH AND HUMAN SERVICES AGENCY
B4: DHCS 1822 J (Rev. 10/18)
B5: ='1. Information'!B5 -> Annual Mental Health Services Act Revenue and Expenditure Report
B6: ='1. Information'!B6 -> Fiscal Year: 2022-23
B7: Comments
B9: County: | C9: =IF(ISBLANK('1. Information'!D11),"",'1. Information'!D11) -> San Benito | E9: Date: | F9: =IF(ISBLANK('1. Information'!D9),"",'1. Information'!D9) -> 2024-03-07
C11: Component | D11: Comments
B12: 1
B13: 2
B14: 3
B15: 4
B16: 5
B17: 6
B18: 7
B19: 8
B20: 9
B21: 10
B22: 11
B23: 12
B24: 13
B25: 14
B26: 15
B27: 16
B28: 17
B29: 18
B30: 19
B31: 20
B32: 21
B33: 22
B34: 23
B35: 24
B36: 25
B37: 26
B38: 27
B39: 28
B40: 29
B41: 30
B42: 31
B43: 32
B44: 33
B45: 34
B46: 35
B47: 36
B48: 37
B49: 38
B50: 39
B51: 40

Sheet Checks (hidden)
A1: SCO Distribution
A2: FY 2017-18
C3: Total x 76% | D3: Total x 19% | E3: Total x 5% | G3: County Check: | H3: ='1. Information'!D11 -> San Benito
A4: County | B4: TOTAL | C4: CSS | D4: PEI | E4: INN
A5: Alameda | B5: 70551654.33 | C5: =B5*0.76 -> 53619257.29 | D5: =B5*0.19 -> 13404814.32 | E5: =B5*0.05 -> 3527582.717 | G5: Cell | H5: Status | I5: Notes
A6: Alpine | B6: 1499512.85 | C6: =B6*0.76 -> 1139629.766 | D6: =B6*0.19 -> 284907.4415 | E6: =B6*0.05 -> 74975.6425 | G6: ='2. Component Summary'!I24 | H6: =IF(SUM('2. Component Summary'!D27:H27)='2. Component Summary'!I27,"OK","ERROR") -> OK | I6: CSS Transfers to PEI, WET, CFTN, or Prudent Reserve must net to total 0
A7: Amador | B7: 2931915.69 | C7: 2228255.924 | D7: 557063.9811 | E7: 146595.7845 | G7: ='2. Component Summary'!D37 | H7: =IF('2. Component Summary'!D40*0.05>VLOOKUP(H3,SCO_Distribution,2,FALSE),"ERROR","OK") -> OK | I7: Total MHSA costs for planning for all components may not exceed 5 percent of the total annual MHSA revenues received by the County.
A8: Berkeley | B8: 5994545.01 | C8: 4555854.208 | D8: 1138963.552 | E8: 299727.2505 | G8: ='2. Component Summary'!D43 | H8: =IF(ISBLANK('2. Component Summary'!D46),"ERROR","OK") -> OK | I8: Counties must report total MHSA funds spent on mental health services provided to veterans for all programs and projects funded through the Community Services and Supports, Prevention and Early Intervention, and Innovation components, combined. ENTER $0 IF NO SPENDING.
A9: Butte | B9: 11405471.8 | C9: 8668158.568 | D9: 2167039.642 | E9: 570273.59 | G9: ='2. Component Summary'!G12 | H9: =IF(ISBLANK('2. Component Summary'!I14),"ERROR","OK") -> OK | I9: Counties must report the total amount of interest earned on the local MHS fund
A10: Calaveras | B10: 3208867.31 | C10: 2438739.156 | D10: 609684.7889 | E10: 160443.3655 | G10: ='2. Component Summary'!F16 | H10: =IF(ISBLANK('2. Component Summary'!F19),"ERROR","OK") -> OK | I10: Please report the beginning balance of the local prudent reserve. This amount must match the prudent reserve ending balance reported in the FY 2016-17 ARER
A11: Colusa | B11: 2568596.22 | C11: 1952133.127 | D11: 488033.2818 | E11: 128429.811
A12: Contra Costa | B12: 45360350.14 | C12: 34473866.11 | D12: 8618466.527 | E12: 2268017.507
A13: Del Norte | B13: 2728833.71 | C13: 2073913.62 | D13: 518478.4049 | E13: 136441.6855
A14: El Dorado | B14: 7928641.31 | C14: 6025767.396 | D14: 1506441.849 | E14: 396432.0655
A15: Fresno | B15: 49459289.24 | C15: 37589059.82 | D15: 9397264.956 | E15: 2472964.462
A16: Glenn | B16: 2777161.3 | C16: 2110642.588 | D16: 527660.647 | E16: 138858.065
A17: Humboldt | B17: 7058805.66 | C17: 5364692.302 | D17: 1341173.075 | E17: 352940.283
A18: Imperial | B18: 9759832.08 | C18: 7417472.381 | D18: 1854368.095 | E18: 487991.604
A19: Inyo | B19: 1843374.33 | C19: 1400964.491 | D19: 350241.1227 | E19: 92168.7165
A20: Kern | B20: 42775932.49 | C20: 32509708.69 | D20: 8127427.173 | E20: 2138796.625
A21: Kings | B21: 8142509.42 | C21: 6188307.159 | D21: 1547076.79 | E21: 407125.471
A22: Lake | B22: 3954947.83 | C22: 3005760.351 | D22: 751440.0877 | E22: 197747.3915
A23: Lassen | B23: 2718985.63 | C23: 2066429.079 | D23: 516607.2697 | E23: 135949.2815
A24: Los Angeles | B24: 562799428 | C24: 427727565.2 | D24: 106931891.3 | E24: 28139971.4
A25: Madera | B25: 8618217.03 | C25: 6549844.943 | D25: 1637461.236 | E25: 430910.8515
A26: Marin | B26: 11207287.7 | C26: 8517538.652 | D26: 2129384.663 | E26: 560364.385
A27: Mariposa | B27: 1848530.92 | C27: 1404883.499 | D27: 351220.8748 | E27: 92426.546
A28: Mendocino | B28: 4823051.52 | C28: 3665519.155 | D28: 916379.7888 | E28: 241152.576
A29: Merced | B29: 14640569.48 | C29: 11126832.8 | D29: 2781708.201 | E29: 732028.474
A30: Modoc | B30: 1685960.26 | C30: 1281329.798 | D30: 320332.4494 | E30: 84298.013
A31: Mono | B31: 1795078.7 | C31: 1364259.812 | D31: 341064.953 | E31: 89753.935
A32: Monterey | B32: 23244033.95 | C32: 17665465.8 | D32: 4416366.45 | E32: 1162201.697
A33: Napa | B33: 6536717.39 | C33: 4967905.216 | D33: 1241976.304 | E33: 326835.8695
A34: Nevada | B34: 5205259.92 | C34: 3955997.539 | D34: 988999.3848 | E34: 260262.996
A35: Orange | B35: 161768522.7 | C35: 122944077.2 | D35: 30736019.31 | E35: 8088426.134
A36: Placer | B36: 13984445.13 | C36: 10628178.3 | D36: 2657044.575 | E36: 699222.2565
A37: Plumas | B37: 2467653.2 | C37: 1875416.432 | D37: 468854.108 | E37: 123382.66
A38: Riverside | B38: 107758676.8 | C38: 81896594.36 | D38: 20474148.59 | E38: 5387933.839
A39: Sacramento | B39: 64816236.61 | C39: 49260339.82 | D39: 12315084.96 | E39: 3240811.831
A40: San Benito | B40: 3734424.29 | C40: 2838162.46 | D40: 709540.6151 | E40: 186721.2145
A41: San Bernardino | B41: 105985451.2 | C41: 80548942.87 | D41: 20137235.72 | E41: 5299272.558
A42: San Diego | B42: 162263869.3 | C42: 123320540.7 | D42: 30830135.18 | E42: 8113193.468
A43: San Francisco | B43: 36784240.54 | C43: 27956022.81 | D43: 6989005.703 | E43: 1839212.027
A44: San Joaquin | B44: 34063364.47 | C44: 25888157 | D44: 6472039.249 | E44: 1703168.224
A45: San Luis Obispo | B45: 13341171.35 | C45: 10139290.23 | D45: 2534822.556 | E45: 667058.5675
A46: San Mateo | B46: 32446715.59 | C46: 24659503.85 | D46: 6164875.962 | E46: 1622335.78
A47: Santa Barbara | B47: 22984920.52 | C47: 17468539.6 | D47: 4367134.899 | E47: 1149246.026
A48: Santa Clara | B48: 89754925.08 | C48: 68213743.06 | D48: 17053435.77 | E48: 4487746.254
A49: Santa Cruz | B49: 14340650.48 | C49: 10898894.36 | D49: 2724723.591 | E49: 717032.524
A50: Shasta | B50: 9451466.33 | C50: 7183114.411 | D50: 1795778.603 | E50: 472573.3165
A51: Sierra | B51: 1543875.51 | C51: 1173345.388 | D51: 293336.3469 | E51: 77193.7755
A52: Siskiyou | B52: 3180379.83 | C52: 2417088.671 | D52: 604272.1677 | E52: 159018.9915
A53: Solano | B53: 19695352.55 | C53: 14968467.94 | D53: 3742116.984 | E53: 984767.6275
A54: Sonoma | B54: 22448346.5 | C54: 17060743.34 | D54: 4265185.835 | E54: 1122417.325
A55: Stanislaus | B55: 25846252.59 | C55: 19643151.97 | D55: 4910787.992 | E55: 1292312.63
A56: Sutter | B56: 8720457.47 | C56: 6627547.677 | D56: 1656886.919 | E56: 436022.8735
A57: Tehama | B57: 3817793.55 | C57: 2901523.098 | D57: 725380.7745 | E57: 190889.6775
A58: Tri-City | B58: 11170390.67 | C58: 8489496.909 | D58: 2122374.227 | E58: 558519.5335
A59: Trinity | B59: 1780320.58 | C59: 1353043.641 | D59: 338260.9102 | E59: 89016.029
A60: Tulare | B60: 24328481.47 | C60: 18489645.92 | D60: 4622411.479 | E60: 1216424.073
A61: Tuolumne | B61: 3531297.55 | C61: 2683786.138 | D61: 670946.5345 | E61: 176564.8775
A62: Ventura | B62: 40893418.26 | C62: 31078997.88 | D62: 7769749.469 | E62: 2044670.913
A63: Yolo | B63: 10880652.61 | C63: 8269295.984 | D63: 2067323.996 | E63: 544032.6305
A64: Grand Total | B64: =SUM(B5:B63) -> 1978857114 | C64: =SUM(C5:C63) -> 1503931407 | D64: =SUM(D5:D63) -> 375982851.6 | E64: =SUM(E5:E63) -> 98942855.69

Sheet drop down fields (hidden)
A1: Info_County_Code | C1: Info_Population | D1: CSS_Service_Category | E1: PEI_Combined_Standalone | F1: PEI_Program_Type | G1: INN_Expenditure_Type | H1: WET_Funding_Category | I1: CFTN_Project_Type | J1: Adjustment_MHSA_Component | K1: MHSA_Adjustment_FY | L1: FFP_Adjustment_FY | M1: Adjustment_Reason | N1: Cost_Report_Stage
A2: Alameda | B2: 1 | C2: Yes | D2: FSP | E2: Combined | F2: Prevention | G2: Project | H2: Workforce Staffing | I2: Capital Facility | J2: CSS | K2: FY 2015-16 | L2: FY 2009-10 | M2: Cost Report Reconciliation | N2: Audited
A3: Alpine | B3: 2 | C3: No | D3: Non-FSP | E3: Standalone | F3: Early Intervention | G3: Project Administration | H3: Training/Technical Assistance | I3: Technological Need | J3: PEI | K3: FY 2016-17 | L3: FY 2010-11 | M3: Cost Report Audit | N3: Settled
A4: Amador | B4: 3 | F4: Outreach | G4: Project Evaluation | H4: MH Career Pathways | J4: INN | L4: FY 2011-12 | M4: SDMC Chart Audit | N4: Initial
A5: Berkeley City | B5: 65 | F5: Stigma & Discrimination Reduction | H5: Residency/Internship | J5: WET | L5: FY 2012-13 | M5: Local Quality Assurance Audit
A6: Butte | B6: 4 | F6: Suicide Prevention | H6: Financial Incentive | J6: CFTN | L6: FY 2013-14 | M6: Error
A7: Calaveras | B7: 5 | F7: Access and Linkage | J7: WET RP | L7: FY 2014-15 | M7: Other
A8: Colusa | B8: 6 | F8: Improving Timely Access | J8: PEI SW | L8: FY 2015-16
A9: Contra Costa | B9: 7 | F9: Combined Summary | J9: MHSA HP | L9: FY 2016-17
A10: Del Norte | B10: 8 | J10: Prudent Reserve
A11: El Dorado | B11: 9
A12: Fresno | B12: 10
A13: Glenn | B13: 11
A14: Humboldt | B14: 12
A15: Imperial | B15: 13
A16: Inyo | B16: 14
A17: Kern | B17: 15
A18: Kings | B18: 16
A19: Lake | B19: 17
A20: Lassen | B20: 18
A21: Los Angeles | B21: 19
A22: Madera | B22: 20
A23: Marin | B23: 21
A24: Mariposa | B24: 22
A25: Mendocino | B25: 23
A26: Merced | B26: 24
A27: Modoc | B27: 25
A28: Mono | B28: 26
A29: Monterey | B29: 27
A30: Napa | B30: 28
A31: Nevada | B31: 29
A32: Orange | B32: 30
A33: Placer | B33: 31
A34: Plumas | B34: 32
A35: Riverside | B35: 33
A36: Sacramento | B36: 34
A37: San Benito | B37: 35
A38: San Bernardino | B38: 36
A39: San Diego | B39: 37
A40: San Francisco | B40: 38
A41: San Joaquin | B41: 39
A42: San Luis Obispo | B42: 40
A43: San Mateo | B43: 41
A44: Santa Barbara | B44: 42
A45: Santa Clara | B45: 43
A46: Santa Cruz | B46: 44
A47: Shasta | B47: 45
A48: Sierra | B48: 46
A49: Siskiyou | B49: 47
A50: Solano | B50: 48
A51: Sonoma | B51: 49
A52: Stanislaus | B52: 50
A53: Sutter/Yuba | B53: 63
A54: Tehama | B54: 52
A55: Tri-City | B55: 66
A56: Trinity | B56: 53
A57: Tulare | B57: 54
A58: Tuolumne | B58: 55
A59: Ventura | B59: 56
A60: Yolo | B60: 57

Sheet E-1 CountyState2017 (hidden)
D1: About the Data
A2: E-1: State/County Population Estimates with Annual Percent Change
A3: January 1, 2017 and 2018
A5: State/County | B5: Total Population | D5: Percent
B6: 2017-01-01 | C6: 2018-01-01 | D6: Change | E6: County Population: Over 200,000? (Yes or No)
A8: California | B8: 39500973 | C8: 39809693 | D8: 0.8
A10: Alameda | B10: 1646405 | C10: 1660202 | D10: 0.8 | E10: =IF(B10>=200000,"Yes", "No") -> Yes
A11: Alpine | B11: 1156 | C11: 1154 | D11: -0.2 | E11: =IF(B11>=200000,"Yes", "No") -> No
A12: Amador | B12: 38382 | C12: 38094 | D12: -0.8 | E12: No
A13: Butte | B13: 226403 | C13: 227621 | D13: 0.5 | E13: Yes
A14: Calaveras | B14: 45175 | C14: 45157 | D14: 0 | E14: No
A15: Colusa | B15: 22050 | C15: 22098 | D15: 0.2 | E15: No
A16: Contra Costa | B16: 1139313 | C16: 1149363 | D16: 0.9 | E16: Yes
A17: Del Norte | B17: 27060 | C17: 27221 | D17: 0.6 | E17: No
A18: El Dorado | B18: 186223 | C18: 188399 | D18: 1.2 | E18: No
A19: Fresno | B19: 995233 | C19: 1007229 | D19: 1.2 | E19: Yes
A20: Glenn | B20: 28730 | C20: 28796 | D20: 0.2 | E20: No
A21: Humboldt | B21: 136430 | C21: 136002 | D21: -0.3 | E21: No
A22: Imperial | B22: 187921 | C22: 190624 | D22: 1.4 | E22: No
A23: Inyo | B23: 18598 | C23: 18577 | D23: -0.1 | E23: No
A24: Kern | B24: 896101 | C24: 905801 | D24: 1.1 | E24: Yes
A25: Kings | B25: 149559 | C25: 151662 | D25: 1.4 | E25: No
A26: Lake | B26: 64740 | C26: 65081 | D26: 0.5 | E26: No
A27: Lassen | B27: 30661 | C27: 30911 | D27: 0.8 | E27: No
A28: Los Angeles | B28: 10231271 | C28: 10283729 | D28: 0.5 | E28: Yes
A29: Madera | B29: 156963 | C29: 158894 | D29: 1.2 | E29: No
A30: Marin | B30: 263262 | C30: 263886 | D30: 0.2 | E30: Yes
A31: Mariposa | B31: 18137 | C31: 18129 | D31: 0 | E31: No
A32: Mendocino | B32: 89092 | C32: 89299 | D32: 0.2 | E32: No
A33: Merced | B33: 275104 | C33: 279977 | D33: 1.8 | E33: Yes
A34: Modoc | B34: 9562 | C34: 9612 | D34: 0.5 | E34: No
A35: Mono | B35: 13759 | C35: 13822 | D35: 0.5 | E35: No
A36: Monterey | B36: 442149 | C36: 443281 | D36: 0.3 | E36: Yes
A37: Napa | B37: 141784 | C37: 141294 | D37: -0.3 | E37: No
A38: Nevada | B38: 98613 | C38: 99155 | D38: 0.5 | E38: No
A39: Orange | B39: 3198968 | C39: 3221103 | D39: 0.7 | E39: Yes
A40: Placer | B40: 383173 | C40: 389532 | D40: 1.7 | E40: Yes
A41: Plumas | B41: 19818 | C41: 19773 | D41: -0.2 | E41: No
A42: Riverside | B42: 2382640 | C42: 2415955 | D42: 1.4 | E42: Yes
A43: Sacramento | B43: 1513415 | C43: 1529501 | D43: 1.1 | E43: Yes
A44: San Benito | B44: 56879 | C44: 57088 | D44: 0.4 | E44: No
A45: San Bernardino | B45: 2155590 | C45: 2174938 | D45: 0.9 | E45: Yes
A46: San Diego | B46: 3309509 | C46: 3337456 | D46: 0.8 | E46: Yes
A47: San Francisco | B47: 874008 | C47: 883963 | D47: 1.1 | E47: Yes
A48: San Joaquin | B48: 747263 | C48: 758744 | D48: 1.5 | E48: Yes
A49: San Luis Obispo | B49: 279210 | C49: 280101 | D49: 0.3 | E49: Yes
A50: San Mateo | B50: 770256 | C50: 774155 | D50: 0.5 | E50: Yes
A51: Santa Barbara | B51: 450025 | C51: 453457 | D51: 0.8 | E51: Yes
A52: Santa Clara | B52: 1937473 | C52: 1956598 | D52: 1 | E52: Yes
A53: Santa Cruz | B53: 276504 | C53: 276864 | D53: 0.1 | E53: Yes
A54: Shasta | B54: 178148 | C54: 178271 | D54: 0.1 | E54: No
A55: Sierra | B55: 3203 | C55: 3207 | D55: 0.1 | E55: No
A56: Siskiyou | B56: 44655 | C56: 44612 | D56: -0.1 | E56: No
A57: Solano | B57: 436640 | C57: 439793 | D57: 0.7 | E57: Yes
A58: Sonoma | B58: 504613 | C58: 503332 | D58: -0.3 | E58: Yes
A59: Stanislaus | B59: 549976 | C59: 555624 | D59: 1 | E59: Yes
A60: Sutter | B60: 96919 | C60: 97238 | D60: 0.3 | E60: No
A61: Tehama | B61: 63949 | C61: 64039 | D61: 0.1 | E61: No
A62: Trinity | B62: 13634 | C62: 13635 | D62: 0 | E62: No
A63: Tulare | B63: 470716 | C63: 475834 | D63: 1.1 | E63: Yes
A64: Tuolumne | B64: 54725 | C64: 54740 | D64: 0 | E64: No
A65: Ventura | B65: 855910 | C65: 859073 | D65: 0.4 | E65: Yes
A66: Yolo | B66: 218673 | C66: 221270 | D66: 1.2 | E66: Yes
A67: Yuba | B67: 74645 | C67: 74727 | D67: 0.1 | E67: No
A69: Sutter/Yuba | B69: =B60+B67 -> 171564 | C69: =C60+C67 -> 171965 | E69: No
A70: Berkeley City | B70: 120700 | C70: 121874 | D70: 1 | E70: No
A71: Tri-City | B71: =B73+B74+B75 -> 224180 | C71: =C73+C74+C75 -> 225393 | E71: Yes
A73: Claremont | B73: 36293 | C73: 36446 | D73: 0.4
A74: La Verne | B74: 33169 | C74: 33260 | D74: 0.3
A75: Pomona | B75: 154718 | C75: 155687 | D75: 0.6
A78: Department of Finance
A79: Demographic Research Unit
A80: Phone: (916) 323-4086
A82: For more information: http://www.dof.ca.gov/research/demographic/reports/estimates/e-1/view.php
A83: Released on May 1, 2017
